[Event "Early-Titled-Tuesday-Blitz-September-05-2023"]
[Site "Chess.com"]
[Date "2023.09.05"]
[Round "8"]
[White "Bilan_Danila"]
[Black "Vanina1989"]
[Result "0-1"]
[WhiteElo "2547"]
[BlackElo "2716"]
[TimeControl "180+1"]
[EndTime "9:24:46 PDT"]
[Termination "Vanina1989 won on time"]

1. d4 {[%clk 0:03:00.9]} 1... d5 {[%clk 0:02:58]} 2. Nf3 {[%clk 0:03:01.3]} 2...
Nf6 {[%clk 0:02:56.5]} 3. c4 {[%clk 0:03:01.9]} 3... c6 {[%clk 0:02:56.8]} 4.
Nc3 {[%clk 0:03:02.1]} 4... dxc4 {[%clk 0:02:54.8]} 5. a4 {[%clk 0:03:01.7]}
5... Bf5 {[%clk 0:02:54.5]} 6. e3 {[%clk 0:03:02.2]} 6... e6 {[%clk 0:02:54]} 7.
Bxc4 {[%clk 0:03:02.8]} 7... Bb4 {[%clk 0:02:54.1]} 8. O-O {[%clk 0:03:03.3]}
8... O-O {[%clk 0:02:54.3]} 9. Qe2 {[%clk 0:03:04]} 9... Bg6 {[%clk 0:02:53]}
10. Ne5 {[%clk 0:03:00.3]} 10... Nbd7 {[%clk 0:02:53]} 11. Nxg6 {[%clk
0:03:00.3]} 11... hxg6 {[%clk 0:02:53.3]} 12. Rd1 {[%clk 0:02:59.5]} 12... Qc7
{[%clk 0:02:52.6]} 13. e4 {[%clk 0:02:49.6]} 13... e5 {[%clk 0:02:52.2]} 14. d5
{[%clk 0:02:44.6]} 14... Rad8 {[%clk 0:02:50.4]} 15. Bg5 {[%clk 0:02:37.4]}
15... Bxc3 {[%clk 0:02:35.1]} 16. bxc3 {[%clk 0:02:33.1]} 16... Nb6 {[%clk
0:02:34.6]} 17. a5 {[%clk 0:01:38.4]} 17... Nxc4 {[%clk 0:02:34]} 18. Qxc4
{[%clk 0:01:39.3]} 18... Rd6 {[%clk 0:02:34.4]} 19. Be3 {[%clk 0:01:29.4]} 19...
Rc8 {[%clk 0:02:26.9]} 20. Bxa7 {[%clk 0:01:20.5]} 20... Qd7 {[%clk 0:02:26.8]}
21. Qa4 {[%clk 0:00:20.2]} 21... cxd5 {[%clk 0:02:25]} 22. exd5 {[%clk
0:00:17.1]} 22... Qxa4 {[%clk 0:02:21.9]} 23. Rxa4 {[%clk 0:00:16.5]} 23... Rxc3
{[%clk 0:02:15.5]} 24. f3 {[%clk 0:00:10.2]} 24... Rxd5 {[%clk 0:02:12]} 25.
Rxd5 {[%clk 0:00:07.5]} 25... Nxd5 {[%clk 0:02:11.9]} 26. Bb8 {[%clk 0:00:06.3]}
26... f6 {[%clk 0:02:11.5]} 27. a6 {[%clk 0:00:06.2]} 27... bxa6 {[%clk
0:02:11]} 28. Rxa6 {[%clk 0:00:07.1]} 28... Rc2 {[%clk 0:02:09.6]} 29. Ra8
{[%clk 0:00:03.6]} 29... Kh7 {[%clk 0:02:09.3]} 30. g3 {[%clk 0:00:02.5]} 30...
Ne3 {[%clk 0:02:08.8]} 31. Ra3 {[%clk 0:00:02.7]} 31... Rg2+ {[%clk 0:02:02]}
32. Kh1 {[%clk 0:00:02.5]} 32... Re2 {[%clk 0:02:02.1]} 33. Ra1 {[%clk
0:00:02.1]} 33... Nc2 {[%clk 0:01:59.3]} 0-1

[Event "Early-Titled-Tuesday-Blitz-September-05-2023"]
[Site "Chess.com"]
[Date "2023.09.05"]
[Round "8"]
[White "bascheyaro"]
[Black "Beca95"]
[Result "0-1"]
[WhiteElo "2808"]
[BlackElo "2981"]
[TimeControl "180+1"]
[EndTime "9:25:10 PDT"]
[Termination "Beca95 won by resignation"]

1. d4 {[%clk 0:03:00.9]} 1... Nf6 {[%clk 0:03:00.3]} 2. Nf3 {[%clk 0:03:01.2]}
2... e6 {[%clk 0:03:00.6]} 3. Bf4 {[%clk 0:03:01.5]} 3... c5 {[%clk 0:03:00.2]}
4. c3 {[%clk 0:03:01.9]} 4... Nc6 {[%clk 0:02:59.3]} 5. e3 {[%clk 0:03:00.6]}
5... Nh5 {[%clk 0:02:59.1]} 6. Bg5 {[%clk 0:02:57]} 6... Qb6 {[%clk 0:02:58.6]}
7. Qb3 {[%clk 0:02:55]} 7... h6 {[%clk 0:02:58.8]} 8. Bh4 {[%clk 0:02:54.2]}
8... g5 {[%clk 0:02:58.3]} 9. Bg3 {[%clk 0:02:54.7]} 9... Nxg3 {[%clk
0:02:57.7]} 10. hxg3 {[%clk 0:02:55.6]} 10... Bg7 {[%clk 0:02:56.8]} 11. Nbd2
{[%clk 0:02:54.7]} 11... d5 {[%clk 0:02:55.8]} 12. Qxb6 {[%clk 0:02:48.8]} 12...
axb6 {[%clk 0:02:55.4]} 13. Bb5 {[%clk 0:02:47.3]} 13... Ke7 {[%clk 0:02:55.7]}
14. Ke2 {[%clk 0:02:39.7]} 14... Bd7 {[%clk 0:02:52.8]} 15. Bd3 {[%clk 0:02:37]}
15... f5 {[%clk 0:02:50.5]} 16. a3 {[%clk 0:02:29.2]} 16... c4 {[%clk
0:02:41.1]} 17. Bc2 {[%clk 0:02:29.5]} 17... b5 {[%clk 0:02:41.8]} 18. Nh2
{[%clk 0:02:26.9]} 18... g4 {[%clk 0:02:41]} 19. f3 {[%clk 0:02:24.2]} 19... h5
{[%clk 0:02:40.7]} 20. e4 {[%clk 0:02:24.4]} 20... Nxd4+ {[%clk 0:02:39]} 21.
cxd4 {[%clk 0:02:24]} 21... Bxd4 {[%clk 0:02:39.5]} 22. Rab1 {[%clk 0:02:04.7]}
22... b4 {[%clk 0:02:37.9]} 23. axb4 {[%clk 0:01:48.3]} 23... Ra2 {[%clk
0:02:37.2]} 24. fxg4 {[%clk 0:01:19.6]} 24... hxg4 {[%clk 0:02:28]} 25. exf5
{[%clk 0:01:09.3]} 25... exf5 {[%clk 0:02:27.7]} 26. Kd1 {[%clk 0:00:50.9]}
26... Kd6 {[%clk 0:02:14.8]} 27. Kc1 {[%clk 0:00:50.6]} 27... b5 {[%clk
0:02:06.7]} 28. Ndf1 {[%clk 0:00:42.8]} 28... Be5 {[%clk 0:01:55]} 29. Kd2
{[%clk 0:00:40.3]} 29... d4 {[%clk 0:01:54.7]} 30. Ke2 {[%clk 0:00:23.2]} 30...
d3+ {[%clk 0:01:46.5]} 31. Bxd3 {[%clk 0:00:23.6]} 31... cxd3+ {[%clk
0:01:47.4]} 32. Kxd3 {[%clk 0:00:24.1]} 32... Bc6 {[%clk 0:01:48]} 33. Ke3
{[%clk 0:00:15.2]} 33... Bxg2 {[%clk 0:01:41.1]} 34. Rg1 {[%clk 0:00:15.5]}
34... Bd5 {[%clk 0:01:41]} 35. Rd1 {[%clk 0:00:10.9]} 35... Rxb2 {[%clk
0:01:38.6]} 0-1

[Event "Early-Titled-Tuesday-Blitz-September-05-2023"]
[Site "Chess.com"]
[Date "2023.09.05"]
[Round "8"]
[White "LionTheLeon_06"]
[Black "Orest_Vovk"]
[Result "1-0"]
[WhiteElo "2811"]
[BlackElo "2620"]
[TimeControl "180+1"]
[EndTime "9:25:13 PDT"]
[Termination "LionTheLeon_06 won by resignation"]

1. e4 {[%clk 0:03:00.9]} 1... g6 {[%clk 0:02:56.7]} 2. Nf3 {[%clk 0:03:00.8]}
2... Nf6 {[%clk 0:02:55]} 3. e5 {[%clk 0:03:00]} 3... Nh5 {[%clk 0:02:52.9]} 4.
d4 {[%clk 0:02:59.4]} 4... d6 {[%clk 0:02:50.7]} 5. h3 {[%clk 0:02:58.4]} 5...
dxe5 {[%clk 0:02:44.8]} 6. Nxe5 {[%clk 0:02:58.1]} 6... Nd7 {[%clk 0:02:45]} 7.
Nf3 {[%clk 0:02:53]} 7... c5 {[%clk 0:02:43.1]} 8. Be2 {[%clk 0:02:48.6]} 8...
cxd4 {[%clk 0:02:39.3]} 9. Nxd4 {[%clk 0:02:48.4]} 9... Nhf6 {[%clk 0:02:34.2]}
10. O-O {[%clk 0:02:48.6]} 10... Bg7 {[%clk 0:02:33.9]} 11. Re1 {[%clk
0:02:48.7]} 11... O-O {[%clk 0:02:33.3]} 12. c4 {[%clk 0:02:47.1]} 12... Nc5
{[%clk 0:02:29.5]} 13. Nc3 {[%clk 0:02:45.8]} 13... e5 {[%clk 0:02:25.8]} 14.
Ndb5 {[%clk 0:02:43.2]} 14... Qxd1 {[%clk 0:02:24.5]} 15. Rxd1 {[%clk
0:02:43.4]} 15... Nfe4 {[%clk 0:02:01.7]} 16. Nxe4 {[%clk 0:02:43]} 16... Nxe4
{[%clk 0:02:02.5]} 17. Be3 {[%clk 0:02:43.9]} 17... b6 {[%clk 0:01:45.7]} 18.
Bf3 {[%clk 0:02:31.9]} 18... f5 {[%clk 0:01:25.6]} 19. Bxe4 {[%clk 0:02:28.5]}
19... fxe4 {[%clk 0:01:25.2]} 20. Nd6 {[%clk 0:02:26.2]} 20... Bf5 {[%clk
0:01:18.4]} 21. Rd2 {[%clk 0:02:18.1]} 21... h5 {[%clk 0:01:11.9]} 22. b4 {[%clk
0:02:16.5]} 22... Rfd8 {[%clk 0:01:02.6]} 23. a4 {[%clk 0:02:15.2]} 23... Bf8
{[%clk 0:00:59]} 24. Rad1 {[%clk 0:02:14.7]} 24... Bxd6 {[%clk 0:00:55.4]} 25.
Rxd6 {[%clk 0:02:15.6]} 25... Rxd6 {[%clk 0:00:56]} 26. Rxd6 {[%clk 0:02:16.2]}
26... Rc8 {[%clk 0:00:54.9]} 27. c5 {[%clk 0:02:16.6]} 27... bxc5 {[%clk
0:00:54.7]} 28. Bxc5 {[%clk 0:02:17.5]} 28... Ra8 {[%clk 0:00:41.9]} 29. b5
{[%clk 0:02:14.1]} 29... e3 {[%clk 0:00:37.2]} 30. Bxe3 {[%clk 0:02:13.7]} 30...
Bc2 {[%clk 0:00:37]} 31. a5 {[%clk 0:02:07.5]} 31... Rb8 {[%clk 0:00:34.5]} 32.
Bxa7 {[%clk 0:01:55.5]} 32... Rxb5 {[%clk 0:00:31.4]} 33. a6 {[%clk 0:01:56.1]}
33... Rb1+ {[%clk 0:00:28.7]} 34. Kh2 {[%clk 0:01:55.8]} 34... Ra1 {[%clk
0:00:27.8]} 35. Be3 {[%clk 0:01:56]} 35... Kf7 {[%clk 0:00:21.7]} 36. f3 {[%clk
0:01:49]} 36... e4 {[%clk 0:00:21.3]} 37. a7 {[%clk 0:01:47.7]} 37... exf3
{[%clk 0:00:21]} 38. gxf3 {[%clk 0:01:48.6]} 38... h4 {[%clk 0:00:16.2]} 39. Rd8
{[%clk 0:01:43.4]} 39... Ra2 {[%clk 0:00:13.3]} 40. a8=Q {[%clk 0:01:40.6]} 1-0

[Event "Early-Titled-Tuesday-Blitz-September-05-2023"]
[Site "Chess.com"]
[Date "2023.09.05"]
[Round "8"]
[White "Karttunen"]
[Black "Zhigalko_Sergei"]
[Result "0-1"]
[WhiteElo "2584"]
[BlackElo "2874"]
[TimeControl "180+1"]
[EndTime "9:25:19 PDT"]
[Termination "Zhigalko_Sergei won by resignation"]

1. e4 {[%clk 0:03:00.9]} 1... c5 {[%clk 0:03:00.2]} 2. Nf3 {[%clk 0:03:00.7]}
2... Nc6 {[%clk 0:03:00.5]} 3. Bb5 {[%clk 0:03:00.1]} 3... Nf6 {[%clk
0:03:00.8]} 4. Bxc6 {[%clk 0:02:58.2]} 4... dxc6 {[%clk 0:02:59.7]} 5. d3 {[%clk
0:02:58]} 5... Bg4 {[%clk 0:02:57.2]} 6. h3 {[%clk 0:02:57.5]} 6... Bh5 {[%clk
0:02:57.6]} 7. Nbd2 {[%clk 0:02:54]} 7... Qc7 {[%clk 0:02:57.4]} 8. Nc4 {[%clk
0:02:47.6]} 8... Nd7 {[%clk 0:02:56.9]} 9. a4 {[%clk 0:02:37.5]} 9... b5 {[%clk
0:02:51]} 10. Ne3 {[%clk 0:02:18.3]} 10... e6 {[%clk 0:02:50.7]} 11. Bd2 {[%clk
0:02:11.6]} 11... Be7 {[%clk 0:02:47.2]} 12. Bc3 {[%clk 0:02:06.2]} 12... O-O
{[%clk 0:02:46.7]} 13. g4 {[%clk 0:02:04.4]} 13... Bg6 {[%clk 0:02:46.7]} 14. b3
{[%clk 0:02:00.1]} 14... f5 {[%clk 0:02:19.1]} 15. e5 {[%clk 0:01:27]} 15...
fxg4 {[%clk 0:01:57.1]} 16. hxg4 {[%clk 0:01:25.1]} 16... Rf4 {[%clk 0:01:56.7]}
17. Qe2 {[%clk 0:01:08.8]} 17... Raf8 {[%clk 0:01:55.9]} 18. Rh3 {[%clk
0:01:08.9]} 18... Nb6 {[%clk 0:01:32.6]} 19. Bd2 {[%clk 0:00:48.5]} 19... R4f7
{[%clk 0:01:25.6]} 20. Ba5 {[%clk 0:00:32.3]} 20... Qd7 {[%clk 0:01:10.4]} 21.
Bxb6 {[%clk 0:00:31.4]} 21... axb6 {[%clk 0:01:10.5]} 22. a5 {[%clk 0:00:07.9]}
22... bxa5 {[%clk 0:01:04.9]} 23. Rxa5 {[%clk 0:00:07.6]} 23... c4 {[%clk
0:01:05.6]} 24. Ra2 {[%clk 0:00:02.2]} 24... cxd3 {[%clk 0:01:02.9]} 25. c3
{[%clk 0:00:02.6]} 25... dxe2 {[%clk 0:01:02.9]} 0-1

[Event "Early-Titled-Tuesday-Blitz-September-05-2023"]
[Site "Chess.com"]
[Date "2023.09.05"]
[Round "8"]
[White "Thecourseoisildur"]
[Black "Eloist"]
[Result "1-0"]
[WhiteElo "2585"]
[BlackElo "2437"]
[TimeControl "180+1"]
[EndTime "9:25:19 PDT"]
[Termination "Thecourseoisildur won on time"]

1. e4 {[%clk 0:03:00.9]} 1... e6 {[%clk 0:02:59.8]} 2. d4 {[%clk 0:03:00.2]}
2... d5 {[%clk 0:02:59.9]} 3. e5 {[%clk 0:02:58.1]} 3... c5 {[%clk 0:02:59.5]}
4. c3 {[%clk 0:02:58.5]} 4... Qb6 {[%clk 0:02:59.6]} 5. Nf3 {[%clk 0:02:58.7]}
5... Bd7 {[%clk 0:02:59.8]} 6. a3 {[%clk 0:02:58]} 6... Bb5 {[%clk 0:02:58.7]}
7. Bxb5+ {[%clk 0:02:57.1]} 7... Qxb5 {[%clk 0:02:58.3]} 8. b4 {[%clk 0:02:58]}
8... cxd4 {[%clk 0:02:57.1]} 9. cxd4 {[%clk 0:02:57.3]} 9... Nd7 {[%clk
0:02:56.8]} 10. Nc3 {[%clk 0:02:57.5]} 10... Qc6 {[%clk 0:02:56.4]} 11. Bb2
{[%clk 0:02:56.1]} 11... Nb6 {[%clk 0:02:56.1]} 12. Nd2 {[%clk 0:02:53.7]} 12...
Nc4 {[%clk 0:02:52.2]} 13. Nxc4 {[%clk 0:02:53]} 13... Qxc4 {[%clk 0:02:52]} 14.
Qa4+ {[%clk 0:02:50.5]} 14... Qc6 {[%clk 0:02:48.2]} 15. Qxc6+ {[%clk
0:02:47.5]} 15... bxc6 {[%clk 0:02:47.9]} 16. Kd2 {[%clk 0:02:38.4]} 16... Ne7
{[%clk 0:02:44.7]} 17. Na4 {[%clk 0:02:36.3]} 17... Nc8 {[%clk 0:02:39.5]} 18.
Nc5 {[%clk 0:02:35.4]} 18... Nb6 {[%clk 0:02:37.8]} 19. Bc3 {[%clk 0:02:32]}
19... Nc4+ {[%clk 0:02:26.1]} 20. Kd3 {[%clk 0:02:30.8]} 20... Be7 {[%clk
0:02:13.3]} 21. f4 {[%clk 0:02:26.4]} 21... g6 {[%clk 0:02:06.4]} 22. g4 {[%clk
0:02:23.6]} 22... h5 {[%clk 0:02:04.7]} 23. h3 {[%clk 0:02:15.9]} 23... a5
{[%clk 0:01:59.8]} 24. f5 {[%clk 0:02:10]} 24... Bxc5 {[%clk 0:01:47.1]} 25.
bxc5 {[%clk 0:02:08.6]} 25... gxf5 {[%clk 0:01:31.5]} 26. gxf5 {[%clk
0:02:06.5]} 26... Rg8 {[%clk 0:01:31.8]} 27. Rhg1 {[%clk 0:02:02.9]} 27... Ke7
{[%clk 0:01:25.3]} 28. f6+ {[%clk 0:01:59.1]} 28... Kd7 {[%clk 0:01:24.8]} 29.
Rg7 {[%clk 0:01:57.1]} 29... Rxg7 {[%clk 0:01:15.1]} 30. fxg7 {[%clk 0:01:58]}
30... Rg8 {[%clk 0:01:14.5]} 31. Rg1 {[%clk 0:01:58]} 31... Nxa3 {[%clk
0:00:51.3]} 32. Bxa5 {[%clk 0:01:57.6]} 32... Nc4 {[%clk 0:00:41.3]} 33. Be1
{[%clk 0:01:52.2]} 33... f5 {[%clk 0:00:22.2]} 34. exf6 {[%clk 0:01:49.4]} 34...
Ke8 {[%clk 0:00:21.8]} 35. Bg3 {[%clk 0:01:48.6]} 35... Kf7 {[%clk 0:00:20]} 36.
Be5 {[%clk 0:01:49.2]} 36... Ra8 {[%clk 0:00:17.7]} 37. Rb1 {[%clk 0:01:47.8]}
37... Ra3+ {[%clk 0:00:14.7]} 38. Ke2 {[%clk 0:01:47.2]} 38... Ra2+ {[%clk
0:00:09.3]} 39. Ke1 {[%clk 0:01:46.3]} 39... Ra8 {[%clk 0:00:05.3]} 40. Rb7+
{[%clk 0:01:44.5]} 40... Kg6 {[%clk 0:00:02.6]} 41. f7 {[%clk 0:01:39.6]} 1-0

[Event "Early-Titled-Tuesday-Blitz-September-05-2023"]
[Site "Chess.com"]
[Date "2023.09.05"]
[Round "8"]
[White "Jahonas"]
[Black "Aanna12"]
[Result "1-0"]
[WhiteElo "2399"]
[BlackElo "2040"]
[TimeControl "180+1"]
[EndTime "9:25:19 PDT"]
[Termination "Jahonas won by resignation"]

1. d4 {[%clk 0:03:00.9]} 1... Nf6 {[%clk 0:02:59.4]} 2. Nf3 {[%clk 0:03:01.6]}
2... d6 {[%clk 0:02:58.6]} 3. c4 {[%clk 0:03:01.9]} 3... Nbd7 {[%clk 0:02:58.6]}
4. Nc3 {[%clk 0:03:02.5]} 4... e5 {[%clk 0:02:57.9]} 5. dxe5 {[%clk 0:03:01.7]}
5... dxe5 {[%clk 0:02:58.1]} 6. Bg5 {[%clk 0:03:01.8]} 6... Be7 {[%clk
0:02:57.1]} 7. e3 {[%clk 0:03:02]} 7... O-O {[%clk 0:02:54.7]} 8. Be2 {[%clk
0:03:01.8]} 8... c6 {[%clk 0:02:54.8]} 9. O-O {[%clk 0:03:01.9]} 9... h6 {[%clk
0:02:55]} 10. Bh4 {[%clk 0:02:59.1]} 10... Qc7 {[%clk 0:02:51.2]} 11. Bg3 {[%clk
0:02:58.2]} 11... Re8 {[%clk 0:02:49.7]} 12. Qc2 {[%clk 0:02:57.4]} 12... Nh5
{[%clk 0:02:47.1]} 13. Rfd1 {[%clk 0:02:53.9]} 13... Nxg3 {[%clk 0:02:46.7]} 14.
hxg3 {[%clk 0:02:53.4]} 14... Nf6 {[%clk 0:02:46.5]} 15. a3 {[%clk 0:02:51.7]}
15... a5 {[%clk 0:02:44.7]} 16. Na4 {[%clk 0:02:49.3]} 16... Bf8 {[%clk
0:02:15.8]} 17. c5 {[%clk 0:02:46.5]} 17... g6 {[%clk 0:02:03.9]} 18. e4 {[%clk
0:02:42.2]} 18... Bg4 {[%clk 0:01:57.8]} 19. Nb6 {[%clk 0:02:41.1]} 19... Rad8
{[%clk 0:01:52.5]} 20. b4 {[%clk 0:02:40.1]} 20... axb4 {[%clk 0:01:39.7]} 21.
axb4 {[%clk 0:02:37.7]} 21... Nd7 {[%clk 0:01:39.8]} 22. Nc4 {[%clk 0:02:30.7]}
22... Bxf3 {[%clk 0:01:34.1]} 23. gxf3 {[%clk 0:02:26.3]} 23... b5 {[%clk
0:01:33.3]} 24. Nd6 {[%clk 0:02:23.4]} 24... Bxd6 {[%clk 0:01:18.5]} 25. cxd6
{[%clk 0:02:04.7]} 25... Qb6 {[%clk 0:01:17.9]} 26. Rac1 {[%clk 0:02:01.7]}
26... Rc8 {[%clk 0:01:12.7]} 27. f4 {[%clk 0:01:57.2]} 27... c5 {[%clk
0:01:00.9]} 28. Bg4 {[%clk 0:01:51.2]} 28... cxb4 {[%clk 0:01:00.6]} 29. Qxc8
{[%clk 0:01:49.4]} 29... Rxc8 {[%clk 0:01:00.2]} 30. Rxc8+ {[%clk 0:01:49.3]}
30... Kg7 {[%clk 0:00:56.2]} 31. Bxd7 {[%clk 0:01:48.4]} 31... b3 {[%clk
0:00:52.9]} 32. Bxb5 {[%clk 0:01:35.5]} 32... exf4 {[%clk 0:00:29.5]} 33. gxf4
{[%clk 0:01:34.3]} 33... Qxb5 {[%clk 0:00:20.5]} 34. d7 {[%clk 0:01:33.3]} 34...
Qe2 {[%clk 0:00:19.7]} 35. d8=Q {[%clk 0:01:32.6]} 35... Qg4+ {[%clk 0:00:19.5]}
36. Kf1 {[%clk 0:01:32.7]} 36... Qh3+ {[%clk 0:00:17.1]} 37. Ke2 {[%clk
0:01:31.9]} 37... Qg4+ {[%clk 0:00:17.2]} 38. Ke3 {[%clk 0:01:30.5]} 1-0

[Event "Early-Titled-Tuesday-Blitz-September-05-2023"]
[Site "Chess.com"]
[Date "2023.09.05"]
[Round "8"]
[White "MartinMatthiesen"]
[Black "CFalcons8"]
[Result "1-0"]
[WhiteElo "2471"]
[BlackElo "2285"]
[TimeControl "180+1"]
[EndTime "9:25:26 PDT"]
[Termination "MartinMatthiesen won by resignation"]

1. d4 {[%clk 0:03:00.9]} 1... Nf6 {[%clk 0:02:59.2]} 2. c4 {[%clk 0:03:00.6]}
2... e6 {[%clk 0:02:57.3]} 3. Nf3 {[%clk 0:03:00.1]} 3... d5 {[%clk 0:02:56.5]}
4. Nc3 {[%clk 0:02:59.6]} 4... Bb4 {[%clk 0:02:54.1]} 5. cxd5 {[%clk 0:02:54]}
5... exd5 {[%clk 0:02:51.3]} 6. Bg5 {[%clk 0:02:53.6]} 6... O-O {[%clk
0:02:50.6]} 7. e3 {[%clk 0:02:52.5]} 7... Bf5 {[%clk 0:02:49.1]} 8. Be2 {[%clk
0:02:49.8]} 8... c6 {[%clk 0:02:48.3]} 9. Qb3 {[%clk 0:02:46.7]} 9... Qa5 {[%clk
0:02:29]} 10. Bxf6 {[%clk 0:02:45.5]} 10... gxf6 {[%clk 0:02:29.9]} 11. O-O
{[%clk 0:02:43.8]} 11... Nd7 {[%clk 0:02:26.7]} 12. Nh4 {[%clk 0:02:34.9]} 12...
Bg6 {[%clk 0:02:25.2]} 13. Bg4 {[%clk 0:02:29.5]} 13... Nb6 {[%clk 0:02:21.9]}
14. Nf5 {[%clk 0:02:28.6]} 14... Nc4 {[%clk 0:02:18.9]} 15. Rfc1 {[%clk
0:02:06.1]} 15... Rfe8 {[%clk 0:01:58.8]} 16. a3 {[%clk 0:01:49.5]} 16... Bf8
{[%clk 0:01:56.4]} 17. Qc2 {[%clk 0:01:36.2]} 17... b5 {[%clk 0:01:49.3]} 18.
Ne2 {[%clk 0:01:27.7]} 18... Qb6 {[%clk 0:01:36.8]} 19. Nf4 {[%clk 0:01:26.8]}
19... b4 {[%clk 0:01:29.9]} 20. axb4 {[%clk 0:01:25]} 20... Bxb4 {[%clk
0:01:30.8]} 21. h4 {[%clk 0:01:21.9]} 21... Nd6 {[%clk 0:00:42.3]} 22. Nxg6
{[%clk 0:00:57.7]} 22... fxg6 {[%clk 0:00:34.8]} 23. Nxd6 {[%clk 0:00:57.6]}
23... Bxd6 {[%clk 0:00:34.6]} 24. Qxc6 {[%clk 0:00:58.3]} 24... Qxc6 {[%clk
0:00:19.9]} 25. Rxc6 {[%clk 0:00:59.2]} 25... Bb4 {[%clk 0:00:14.3]} 26. Be6+
{[%clk 0:00:57.5]} 26... Kg7 {[%clk 0:00:14]} 27. Bxd5 {[%clk 0:00:58.2]} 27...
a5 {[%clk 0:00:13.4]} 28. Rc7+ {[%clk 0:00:57.1]} 28... Kh6 {[%clk 0:00:12.3]}
29. Bxa8 {[%clk 0:00:56.9]} 1-0

[Event "Early-Titled-Tuesday-Blitz-September-05-2023"]
[Site "Chess.com"]
[Date "2023.09.05"]
[Round "8"]
[White "assezde36"]
[Black "GOGIEFF"]
[Result "0-1"]
[WhiteElo "2801"]
[BlackElo "3015"]
[TimeControl "180+1"]
[EndTime "9:25:28 PDT"]
[Termination "GOGIEFF won by resignation"]

1. d4 {[%clk 0:02:58.1]} 1... Nf6 {[%clk 0:02:58]} 2. Nf3 {[%clk 0:02:58.8]}
2... d5 {[%clk 0:02:57.7]} 3. e3 {[%clk 0:02:59.6]} 3... a6 {[%clk 0:02:56.1]}
4. Be2 {[%clk 0:02:59.9]} 4... Bf5 {[%clk 0:02:55.4]} 5. O-O {[%clk 0:03:00.2]}
5... e6 {[%clk 0:02:55.9]} 6. Nh4 {[%clk 0:02:54.5]} 6... Be4 {[%clk 0:02:52]}
7. f3 {[%clk 0:02:52.3]} 7... Bg6 {[%clk 0:02:51.5]} 8. c4 {[%clk 0:02:48.2]}
8... c5 {[%clk 0:02:50.7]} 9. cxd5 {[%clk 0:02:40.9]} 9... exd5 {[%clk
0:02:49.4]} 10. Nc3 {[%clk 0:02:33.4]} 10... Nc6 {[%clk 0:02:49.5]} 11. g4
{[%clk 0:02:11.9]} 11... Nxg4 {[%clk 0:02:06.6]} 12. Nxg6 {[%clk 0:02:06.6]}
12... hxg6 {[%clk 0:02:07.5]} 13. fxg4 {[%clk 0:02:05.9]} 13... Qh4 {[%clk
0:02:07.6]} 14. Rf2 {[%clk 0:02:05.7]} 14... Bd6 {[%clk 0:02:07.6]} 15. Kf1
{[%clk 0:01:26.7]} 15... Bxh2 {[%clk 0:02:03.5]} 16. Bf3 {[%clk 0:01:17.7]}
16... Bg3 {[%clk 0:01:58.6]} 17. Rc2 {[%clk 0:01:11.3]} 17... Rd8 {[%clk
0:01:04.7]} 18. b3 {[%clk 0:00:49.5]} 18... Qf6 {[%clk 0:00:53.7]} 19. Kg1
{[%clk 0:00:37.4]} 19... cxd4 {[%clk 0:00:53.8]} 20. Nxd5 {[%clk 0:00:35.8]}
20... Qe5 {[%clk 0:00:40.4]} 21. Be4 {[%clk 0:00:36.5]} 21... Qxe4 {[%clk
0:00:37.9]} 0-1

[Event "Early-Titled-Tuesday-Blitz-September-05-2023"]
[Site "Chess.com"]
[Date "2023.09.05"]
[Round "8"]
[White "twofoxniel"]
[Black "Just_Lucky_1"]
[Result "1-0"]
[WhiteElo "2666"]
[BlackElo "2520"]
[TimeControl "180+1"]
[EndTime "9:25:29 PDT"]
[Termination "twofoxniel won by checkmate"]

1. e4 {[%clk 0:02:58.5]} 1... c5 {[%clk 0:02:59.3]} 2. d4 {[%clk 0:02:57.6]}
2... cxd4 {[%clk 0:03:00.2]} 3. c3 {[%clk 0:02:57.8]} 3... dxc3 {[%clk
0:03:01.1]} 4. Nxc3 {[%clk 0:02:58.7]} 4... d6 {[%clk 0:02:59.5]} 5. Nf3 {[%clk
0:02:59.2]} 5... a6 {[%clk 0:02:59.1]} 6. Bc4 {[%clk 0:02:59.8]} 6... Nc6 {[%clk
0:02:57.5]} 7. O-O {[%clk 0:02:58.1]} 7... Nf6 {[%clk 0:02:55]} 8. h3 {[%clk
0:02:57.4]} 8... e6 {[%clk 0:02:47.5]} 9. Qe2 {[%clk 0:02:57.1]} 9... Be7 {[%clk
0:02:44.2]} 10. Rd1 {[%clk 0:02:57.1]} 10... Qc7 {[%clk 0:02:44.1]} 11. Bf4
{[%clk 0:02:54.7]} 11... O-O {[%clk 0:02:42.8]} 12. Rd2 {[%clk 0:02:54.1]} 12...
Ne5 {[%clk 0:02:42.7]} 13. Bb3 {[%clk 0:02:54.4]} 13... b5 {[%clk 0:02:40.3]}
14. Rad1 {[%clk 0:02:54.8]} 14... Bb7 {[%clk 0:02:37.5]} 15. a3 {[%clk
0:02:54.9]} 15... Rac8 {[%clk 0:02:34.5]} 16. Ng5 {[%clk 0:02:50.5]} 16... Nc4
{[%clk 0:02:16.1]} 17. Bxc4 {[%clk 0:02:50]} 17... Qxc4 {[%clk 0:02:17]} 18.
Qxc4 {[%clk 0:02:34.7]} 18... Rxc4 {[%clk 0:02:17.9]} 19. Bxd6 {[%clk
0:02:35.3]} 19... Bxd6 {[%clk 0:02:18.8]} 20. Rxd6 {[%clk 0:02:35.5]} 20... h6
{[%clk 0:02:10]} 21. Rb6 {[%clk 0:02:35.5]} 21... Bc8 {[%clk 0:02:01]} 22. Nf3
{[%clk 0:02:20.6]} 22... Nxe4 {[%clk 0:01:58.1]} 23. Nxe4 {[%clk 0:02:16.5]}
23... Rxe4 {[%clk 0:01:59]} 24. Rc1 {[%clk 0:02:14.9]} 24... e5 {[%clk
0:01:43.7]} 25. Rc5 {[%clk 0:02:09.9]} 25... f6 {[%clk 0:01:27.9]} 26. Rc7
{[%clk 0:01:57.8]} 26... Re2 {[%clk 0:01:07]} 27. b4 {[%clk 0:01:57]} 27... Ra2
{[%clk 0:01:05.1]} 28. Nh4 {[%clk 0:01:57.2]} 28... Rd8 {[%clk 0:00:59.4]} 29.
Rb8 {[%clk 0:01:52.7]} 29... Rxa3 {[%clk 0:00:58.3]} 30. Rbxc8 {[%clk
0:01:45.5]} 30... Rxc8 {[%clk 0:00:59.2]} 31. Rxc8+ {[%clk 0:01:46.4]} 31... Kh7
{[%clk 0:00:58.9]} 32. Rc7 {[%clk 0:01:45.2]} 32... Ra4 {[%clk 0:00:56.8]} 33.
Ra7 {[%clk 0:01:44.9]} 33... Rxb4 {[%clk 0:00:56]} 34. Nf5 {[%clk 0:01:44.2]}
34... Rb1+ {[%clk 0:00:40.6]} 35. Kh2 {[%clk 0:01:43.7]} 35... Kg6 {[%clk
0:00:18.4]} 36. g4 {[%clk 0:01:41.5]} 36... Kg5 {[%clk 0:00:13.9]} 37. Kg3
{[%clk 0:01:41.3]} 37... Rg1+ {[%clk 0:00:06]} 38. Kf3 {[%clk 0:01:41]} 38...
e4+ {[%clk 0:00:04.8]} 39. Kxe4 {[%clk 0:01:40.2]} 39... g6 {[%clk 0:00:04.2]}
40. f4# {[%clk 0:01:38.4]} 1-0